bitfinex-derivatives/quotes_ETHF0:USTF0_20250507
["timestamp","ask_amount","ask_price","bid_price","bid_amount"]
[1746640583323,1.7444,1793.8,1793.7,1.11484]
[1746640583928,3.2078,1794.1,1794.0,1.11465]
[1746640584329,8.2078,1794.1,1794.0,1.11465]
[1746640584632,8.2078,1794.1,1793.8,1.11476]
[1746640584823,3.2078,1793.9,1793.3,2.78763]
[1746640585027,4.32253,1793.9,1793.7,1.11481]
[1746640585326,4.8443,1793.8,1793.6,1.11485]
[1746640585532,1.11487,1793.7,1793.5,1.11493]
[1746640585829,5.95925,1793.6,1793.4,7.16]
[1746640586026,1.6365,1793.6,1793.5,1.11497]
[1746640586224,3.2078,1793.9,1793.8,1.11478]
[1746640586423,4.8443,1793.9,1793.8,1.11478]
[1746640587027,3.2078,1793.9,1793.8,1.11478]
[1746640587227,2.75107,1794.2,1793.8,8.83191]
[1746640587434,1.11463,1794.1,1793.9,1.11466]
[1746640587733,1.6365,1794.0,1793.9,1.11472]
[1746640588732,1.6365,1794.0,1793.9,2.84432]
[1746640590333,1.11472,1793.9,1793.8,7.15972]
[1746640590534,4.8443,1794.0,1793.8,7.15973]
[1746640590737,5.959,1794.0,1793.9,1.11472]
[1746640590936,1.11472,1793.9,1793.8,7.15976]
[1746640591137,2.75082,1793.9,1793.8,6.045]
[1746640591533,2.78696,1793.8,1793.1,3.2078]
[1746640591838,4.32298,1793.2,1793.1,1.11521]
[1746640592231,4.32295,1793.2,1793.1,1.11521]
[1746640592432,3.2078,1793.2,1793.1,1.11521]
[1746640592632,1.11509,1793.3,1793.2,1.1151]
[1746640592938,1.11511,1793.3,1793.2,1.11511]
[1746640593133,1.7483,1793.3,1793.2,1.11511]
[1746640593435,3.2078,1793.4,1793.3,1.11509]
[1746640593631,3.2078,1793.4,1793.3,2.74339]
[1746640594343,4.32283,1793.4,1793.3,1.11509]
[1746640594541,3.2078,1793.4,1793.3,1.11509]
[1746640595038,6.08143,1793.4,1793.3,1.11509]
[1746640595242,4.9664,1793.4,1793.3,1.11509]
[1746640595545,3.2078,1793.4,1793.3,1.11509]
[1746640595841,3.2078,1793.4,1793.3,2.84009]
[1746640596036,3.2078,1793.4,1793.3,7.84009]
[1746640596429,4.32253,1793.9,1793.5,2.78734]
[1746640596636,4.9664,1793.9,1793.8,1.11478]
[1746640596835,4.9664,1793.9,1793.6,1.725]
[1746640597039,4.9664,1793.9,1793.8,1.11478]
[1746640597242,6.08112,1793.9,1793.7,2.83979]
[1746640597438,4.9664,1793.9,1793.7,2.83979]
[1746640597638,6.08117,1793.9,1793.8,1.11478]
[1746640597837,1.7586,1793.9,1793.8,1.11478]
[1746640598038,4.9664,1793.9,1793.3,2.78764]
[1746640598235,3.2078,1793.6,1793.2,8.83187]
[1746640598438,4.32292,1793.3,1793.2,1.11513]
[1746640598845,4.98,1793.5,1793.3,1.11509]
[1746640599039,6.095,1793.5,1793.1,2.78803]
[1746640599240,2.8872,1793.5,1793.3,1.11504]
[1746640599540,1.7722,1793.5,1793.4,1.11503]
[1746640600044,6.7722,1793.5,1793.0,6.045]
[1746640600244,4.32288,1793.4,1793.2,1.11512]
[1746640600445,1.7416,1793.3,1793.2,1.11512]
[1746640601149,3.2078,1793.4,1793.3,1.11509]
[1746640601845,4.9494,1793.4,1793.3,1.11509]
[1746640602145,1.7416,1793.4,1793.3,1.11509]
[1746640602446,4.8327,1793.7,1793.5,1.11492]
[1746640602741,1.7416,1793.6,1793.5,1.11492]
[1746640603548,3.2078,1793.7,1793.6,1.1149]
[1746640603842,4.98,1793.7,1793.6,1.1149]
[1746640604040,1.1149,1793.6,1793.5,2.83571]
[1746640604242,1.7722,1793.6,1793.5,2.83571]
[1746640605451,7.95276598,1793.9,1793.8,1.11478]
[1746640605650,2.88693,1793.9,1793.8,1.11478]
[1746640605841,4.98,1793.9,1793.8,1.11478]
[1746640606243,6.09472,1793.9,1793.8,1.11478]
[1746640606945,3.2078,1793.9,1793.8,1.11478]
[1746640607543,1.11483,1793.8,1793.7,1.11483]
[1746640607748,1.11485,1793.7,1793.6,1.11484]
[1746640607946,1.11487,1793.7,1793.6,1.11488]
[1746640608250,4.32265,1793.7,1793.6,1.1149]
[1746640608649,1.7691,1793.8,1793.7,1.11484]
[1746640608849,2.88389,1793.8,1793.7,1.11484]
[1746640609353,6.09172,1793.8,1793.7,1.11484]
[1746640609649,9.9769,1793.8,1793.4,6.045]
[1746640609852,1.11503,1793.4,1793.3,1.11505]
[1746640610045,1.11515,1793.2,1793.1,8.58447]
[1746640610251,2.76662,1793.3,1793.2,1.11515]
[1746640610447,3.2078,1794.0,1793.9,1.11472]
[1746640610650,1.6515,1794.3,1794.2,1.11453]
[1746640610849,1.6542,1794.6,1794.3,1.11447]
[1746640611345,2.7685,1794.6,1794.3,41.91447]
[1746640611554,1.6542,1794.6,1794.3,41.91447]
[1746640611755,2.76854,1794.6,1794.3,41.91447]
[1746640612047,1.11437,1794.5,1794.3,41.91447]
[1746640612253,1.1143,1794.6,1794.3,1.11447]
[1746640613150,3.63023598,1794.5,1794.4,1.11441]
[1746640615952,3.63023598,1794.5,1794.2,48.2683]
[1746640616156,4.74459598,1794.5,1794.3,1.11443]
[1746640616356,1.6165,1794.4,1794.3,1.11443]
[1746640617257,1.11447,1794.3,1794.2,5.812]
[1746640617551,4.32227,1794.3,1794.2,5.812]
[1746640618153,3.2078,1794.3,1794.2,5.812]
[1746640618358,4.32227,1794.3,1794.2,5.812]
[1746640618558,4.8243,1794.3,1794.2,6.92653]
[1746640618857,1.6165,1794.3,1794.2,6.92653]
[1746640619252,2.73097,1794.3,1794.2,6.92653]
[1746640619451,1.6165,1794.3,1794.2,6.92653]
[1746640620155,3.2078,1794.5,1794.2,5.812]
[1746640620461,3.2078,1794.3,1793.8,1.11476]
[1746640620648,4.32258,1793.9,1793.8,1.11476]
[1746640620845,1.11478,1793.8,1793.7,5.811]
[1746640621059,2.78288,1793.8,1793.7,5.811]
[1746640621257,9.4552,1793.8,1793.4,6.92597]
[1746640621557,3.2078,1793.7,1793.6,1.1149]
[1746640621761,4.2978,1793.9,1793.8,1.11478]
[1746640621951,6.0689,1793.9,1793.7,2.7416]
[1746640622151,6.0689,1793.9,1793.3,5.99549]
[1746640622458,4.32264,1793.7,1793.6,1.1149]
[1746640623159,6.0689,1793.9,1793.4,4.41437]
[1746640623358,1.11486,1793.7,1793.6,1.11485]
[1746640623755,6.0689,1793.9,1793.4,7.62217]
[1746640623756,1.1148,1793.8,1793.4,7.62217]
[1746640623954,6.0689,1793.9,1793.4,7.62215]
[1746640624157,1.11478,1793.8,1793.7,1.1148]
[1746640624359,1.7711,1793.8,1793.6,1.11487]
[1746640624558,1.11495,1793.6,1793.4,1.6268]
[1746640624754,4.32265,1793.7,1793.6,1.1149]
[1746640624955,3.2078,1793.7,1793.5,1.11494]
[1746640625155,1.11497,1793.5,1793.4,2.74178]
[1746640625353,1.11497,1793.5,1793.4,1.11498]
[1746640625558,1.11502,1793.5,1793.4,1.11502]
[1746640626055,2.76295,1793.6,1793.5,1.11497]
[1746640626458,2.76295,1793.6,1793.3,4.8476]
[1746640626661,2.76295,1793.6,1793.5,1.11497]
[1746640626855,1.09,1793.9,1793.5,1.11497]
[1746640627157,2.738,1793.9,1793.6,1.6398]
[1746640627356,1.11478,1793.8,1793.7,1.11479]
[1746640627757,1.1148,1793.8,1793.7,1.11481]
[1746640627955,7.92803598,1794.0,1793.9,1.11472]
[1746640628352,4.72023598,1794.0,1793.9,1.11472]
[1746640628554,5.83488598,1794.0,1793.9,1.11472]
[1746640628758,4.72023598,1794.0,1793.9,1.11472]
[1746640628958,3.63023598,1794.0,1793.9,7.80662]
[1746640629264,0.84288831,1794.0,1793.9,7.80662]
[1746640629566,7.28412332,1794.2,1794.1,1.11459]
[1746640629965,7.28412332,1794.2,1794.1,46.91459]
[1746640630263,7.28412332,1794.2,1794.1,48.60649]
[1746640630957,7.28412332,1794.2,1794.1,43.60649]
[1746640631159,7.28412332,1794.2,1794.1,42.4919]
[1746640631357,7.28412332,1794.2,1794.1,43.60649]
[1746640633653,8.39865332,1794.2,1794.1,42.4919]
[1746640633859,10.01705332,1794.2,1794.1,42.4919]
[1746640634061,1.1144,1794.5,1794.3,1.11445]
[1746640634267,2.8868,1794.5,1794.3,1.11445]
[1746640634463,2.8868,1794.5,1794.4,1.6897]
[1746640634671,1.7724,1794.5,1794.4,2.80411]
[1746640634863,2.88674,1794.5,1794.4,1.6897]
[1746640635872,2.88674,1794.5,1794.4,2.80411]
[1746640636472,10.49192332,1794.7,1794.4,1.6897]
[1746640636764,13.37857332,1794.7,1794.5,1.11432]
[1746640637362,11.60617332,1794.7,1794.5,1.11432]
[1746640637562,1.11437,1794.5,1794.1,49.58054]
[1746640637759,4.8591,1794.7,1794.6,1.11428]
[1746640638068,5.97332,1794.7,1794.6,1.11428]
[1746640638369,5.97336,1794.7,1794.6,1.11428]
[1746640638867,1.09,1794.8,1794.6,1.11428]
[1746640639072,12.14322332,1794.9,1794.8,1.11416]
[1746640639280,10.49192332,1794.9,1794.8,1.11416]
[1746640639570,7.28412332,1794.9,1794.8,1.11416]
[1746640641369,1.11399,1795.1,1794.7,7.75739]
[1746640641671,9.78703943,1795.2,1794.8,2.78539]
[1746640641874,1.11403,1795.0,1794.7,3.2078]
[1746640642173,1.11423,1794.7,1794.5,3.2232]
[1746640642471,1.11412,1794.9,1794.6,3.2078]
[1746640642672,1.7456,1794.9,1794.8,1.11416]
[1746640643060,1.7456,1794.9,1794.7,1.7738]
[1746640643061,9.78703943,1795.2,1794.7,4.55933]
[1746640643276,9.78700943,1795.2,1794.8,5.9932]
[1746640643570,11.43017943,1795.2,1795.1,1.11397]
[1746640643774,8.67306943,1795.2,1795.1,1.11397]
[1746640644175,8.67306943,1795.2,1795.0,1.11399]
[1746640644369,11.43020943,1795.2,1795.0,2.82619]
[1746640644874,8.67306943,1795.2,1795.1,1.11397]
[1746640645270,5.46526943,1795.2,1795.1,1.11397]
[1746640645776,2.75704,1795.4,1795.2,1.11388]
[1746640646074,1.6432,1795.4,1795.3,2.82605]
[1746640646464,5.46526943,1795.5,1795.4,1.11379]
[1746640646665,5.46526943,1795.5,1795.4,2.76289]
[1746640647072,6.57898943,1795.5,1795.4,42.4491]
[1746640647282,11.48302943,1795.5,1795.3,1.1138]
[1746640647580,11.48302943,1795.5,1795.4,1.11379]
[1746640648278,11.48302943,1795.5,1795.3,1.6491]
[1746640648279,1.11379,1795.4,1795.3,2.7629]
[1746640648469,2.80999,1795.4,1795.3,2.7629]
[1746640648775,1.6962,1795.4,1795.3,2.7629]
[1746640649179,8.67306943,1795.5,1795.4,1.11379]
[1746640649372,5.46526943,1795.5,1795.4,2.89639]
[1746640649881,1.37063232,1795.5,1795.4,7.89639]
[1746640650074,1.26171799,1795.5,1795.4,2.89639]
[1746640650269,2.98761799,1795.8,1795.4,2.89639]
[1746640650475,1.11363,1795.7,1795.4,1.7826]
[1746640650675,4.32143,1795.7,1795.6,1.11366]
[1746640650873,1.7259,1795.7,1795.6,1.11366]
[1746640651176,4.9337,1795.7,1795.6,1.11366]
[1746640652167,3.2078,1795.7,1795.6,1.11366]
[1746640652372,4.849,1795.7,1795.6,1.11366]
[1746640652582,3.2078,1795.7,1795.6,1.11366]
[1746640652883,1.26171799,1795.8,1795.7,1.1136]
[1746640655672,2.37525799,1795.8,1795.7,1.1136]
[1746640655977,4.07345799,1795.8,1795.7,1.1136]
[1746640656179,2.95991799,1795.8,1795.7,1.1136]
[1746640656881,1.26171799,1795.8,1795.7,1.1136]
[1746640658180,1.26171799,1795.8,1795.6,2.73963]
[1746640658483,4.9923,1795.7,1795.3,1.7092]
[1746640658782,3.2078,1795.5,1795.2,43.58466]
[1746640659080,1.7845,1795.4,1795.3,2.82305]
[1746640660080,2.89829,1795.4,1795.3,1.11385]
[1746640660281,1.11385,1795.3,1795.2,41.91386]
[1746640660482,1.7845,1795.3,1795.2,41.91386]
[1746640660785,1.7845,1795.3,1795.2,2.82306]
[1746640661173,3.2078,1795.5,1795.4,1.11379]
[1746640661379,4.32152,1795.5,1795.4,1.11379]
[1746640661585,3.2078,1795.5,1795.2,1.7092]
[1746640661783,3.2078,1795.7,1795.2,1.7092]
[1746640662078,2.89528,1795.6,1795.5,1.11372]
[1746640663084,1.7816,1795.6,1795.5,1.11372]
[1746640663284,2.89526,1795.6,1795.5,1.11372]
[1746640663480,1.7816,1795.6,1795.5,1.11372]
[1746640663786,2.89526,1795.6,1795.5,1.11372]
[1746640663981,1.7816,1795.6,1795.5,1.11372]
[1746640664380,2.89526,1795.6,1795.5,1.11372]
[1746640664586,1.11372,1795.5,1795.4,2.82896]
[1746640664787,1.11384,1795.4,1795.3,1.11379]
[1746640665086,4.915,1795.5,1795.2,45.21644]
[1746640665287,3.2078,1795.5,1795.4,1.11379]
[1746640665484,4.32152,1795.5,1795.4,1.11379]
[1746640668084,3.2078,1795.5,1795.4,1.11379]
[1746640668389,1.11385,1795.3,1795.2,43.5456]
[1746640668577,1.11377,1795.5,1795.4,1.11379]
[1746640668782,1.11371,1795.6,1795.5,1.11367]
[1746640668982,1.11372,1795.5,1795.4,2.78264]
[1746640669194,4.32152,1795.5,1795.4,2.78269]
[1746640669483,3.2078,1795.5,1795.2,2.78468]
[1746640669784,1.11378,1795.5,1795.4,1.11374]
[1746640670087,1.11379,1795.4,1795.3,2.78269]
[1746640670284,5.99223,1795.5,1795.1,40.8]
[1746640670490,4.32167,1795.3,1795.2,1.11391]
[1746640670891,5.99255,1795.3,1795.0,1.11397]
[1746640671190,1.11396,1795.2,1795.1,1.11393]
[1746640672190,1.11401,1795.1,1795.0,1.11398]
[1746640672488,1.11397,1795.2,1795.1,1.11394]
[1746640673189,1.11403,1795.1,1795.0,1.114]
[1746640673783,3.2078,1795.1,1795.0,1.11399]
[1746640674491,3.2078,1795.5,1794.9,1.7425]
[1746640674689,3.2078,1795.6,1795.0,5.99284]
[1746640674990,4.32149,1795.6,1795.4,1.11376]
[1746640675379,3.2078,1795.6,1795.3,1.7326]
[1746640675579,3.2078,1795.6,1795.3,2.8464]
[1746640675789,4.32149,1795.6,1795.4,1.11377]
[1746640675990,3.2078,1795.6,1795.5,1.11372]
[1746640676290,4.32146,1795.6,1795.5,1.11372]
[1746640676489,3.2078,1795.6,1795.5,1.11372]
[1746640678894,3.2078,1795.6,1795.4,1.7326]
[1746640679091,4.3215,1795.6,1795.4,2.84635]
[1746640679494,3.2078,1795.6,1795.5,1.11372]
[1746640679687,4.32146,1795.6,1795.5,2.85952]
[1746640679882,3.2078,1795.6,1795.5,2.85952]
[1746640680085,3.2078,1795.6,1795.4,1.11375]
[1746640680385,1.11377,1795.5,1794.9,2.78522]
[1746640680581,3.2078,1795.4,1795.3,2.8596]
[1746640680782,3.2078,1795.4,1794.9,3.3794]
[1746640680991,3.2078,1795.2,1795.1,1.11396]
[1746640681291,4.32173,1795.2,1795.1,1.11396]
[1746640681486,1.11397,1795.1,1795.0,1.7458]
[1746640681685,3.2078,1795.2,1795.0,1.7458]
[1746640681890,1.11397,1795.1,1795.0,2.85979]
[1746640682091,8.2078,1795.2,1794.6,3.2078]
[1746640682392,1.11426,1794.7,1794.5,1.11429]
[1746640682594,3.2078,1794.6,1794.5,1.11429]
[1746640682792,4.32199,1794.8,1794.5,1.6409]
[1746640682990,1.11422,1794.7,1794.5,1.6409]
[1746640683297,1.11422,1794.7,1794.6,1.11425]
[1746640683595,3.2078,1794.8,1794.6,1.11425]
[1746640683787,1.11423,1794.7,1794.4,2.78596]
[1746640684189,3.2078,1794.8,1794.7,1.11422]
[1746640684389,1.11412,1794.9,1794.8,1.11416]
[1746640684589,3.2078,1795.0,1794.7,1.11418]
[1746640684789,1.11419,1794.8,1794.7,1.11422]
[1746640685290,3.2078,1795.0,1794.5,3.2078]
[1746640685490,1.11426,1794.7,1794.6,1.11426]
[1746640685793,2.78571,1794.6,1794.2,1.11448]
[1746640686089,1.11442,1794.4,1794.3,1.11444]
[1746640686594,1.11453,1794.2,1794.1,4.32235]
[1746640686797,1.11453,1794.2,1794.1,4.32239]
[1746640687092,5.41219,1794.5,1794.1,5.99425]
[1746640687397,4.2978,1794.5,1794.4,1.11441]
[1746640687594,1.09,1794.8,1794.7,1.11422]
[1746640687788,10.49192332,1794.9,1794.8,1.11416]
[1746640688098,10.49192332,1794.9,1794.3,3.2078]
[1746640688396,10.49192332,1794.9,1794.4,2.78589]
[1746640689094,1.11416,1794.8,1794.7,1.11422]
[1746640689895,1.11424,1794.7,1794.5,3.2078]
[1746640690099,1.11431,1794.6,1794.5,1.11432]
[1746640690399,3.2078,1794.9,1794.4,2.78601]
[1746640690595,3.2078,1794.9,1794.2,3.2078]
[1746640690791,4.3219,1794.9,1794.8,1.11416]
[1746640690991,8.37412332,1795.1,1794.8,1.11416]
[1746640690992,5.51737807,1795.1,1795.0,1.11403]
[1746640691698,5.51737807,1795.1,1795.0,6.11403]
[1746640692197,5.51737807,1795.1,1795.0,1.11403]
[1746640692595,2.73080712,1795.1,1795.0,6.11403]
[1746640693500,1.11395,1795.2,1795.0,1.11403]
[1746640693899,1.11387,1795.3,1794.9,5.99304]
[1746640694100,1.11387,1795.3,1795.1,1.11393]
[1746640694395,1.11383,1795.4,1795.0,40.8]
[1746640694702,1.09,1795.6,1795.3,1.11382]
[1746640694901,3.87401,1795.7,1795.1,3.2078]
[1746640695098,1.11391,1795.3,1795.1,4.32175]
[1746640695302,2.78432,1795.5,1795.1,1.11395]
[1746640695503,4.2978,1795.4,1795.0,40.8]
[1746640695705,1.09,1795.4,1795.0,40.8]
[1746640695900,2.2038,1795.4,1795.2,1.11389]
[1746640696200,1.09,1795.4,1795.2,1.11388]
[1746640696401,1.09,1795.4,1795.3,1.11385]
[1746640697999,1.09,1795.4,1795.3,4.32165]
[1746640698495,1.09,1795.4,1795.3,1.11385]
[1746640700802,2.2037,1795.6,1795.5,1.11372]
[1746640701903,1.09,1795.6,1795.5,1.11372]
[1746640702103,2.20366,1795.6,1795.5,1.11372]
[1746640702900,1.09,1795.6,1795.5,1.11372]
[1746640703103,2.20366,1795.6,1795.5,1.11372]
[1746640703698,1.09,1795.6,1795.5,1.11372]
[1746640703898,2.20366,1795.6,1795.5,1.11372]
[1746640704605,1.09,1795.6,1795.5,1.11372]
[1746640704898,4.32141,1795.7,1795.6,1.11366]
[1746640705101,4.3214,1795.7,1795.6,1.11366]
[1746640705506,3.2078,1795.7,1795.6,1.11366]
[1746640705703,4.3214,1795.7,1795.6,1.11366]
[1746640706004,1.1136,1795.7,1795.6,1.11366]
[1746640706504,2.2036,1795.8,1795.7,1.1136]
[1746640706699,1.09,1795.8,1795.7,1.1136]
[1746640706895,3.2078,1795.9,1795.8,1.11354]
[1746640707104,1.09,1796.0,1795.9,1.11348]
[1746640708103,9.09362331,1796.1,1796.0,1.11341]
[1746640708298,5.7491689,1796.1,1796.0,1.11341]
[1746640708498,5.7491689,1796.1,1796.0,6.11341]
[1746640708807,3.6159989,1796.1,1796.0,6.11341]
[1746640708994,21.6019518,1796.4,1796.3,1.11323]
[1746640709197,21.6019518,1796.4,1796.3,4.32103]
[1746640709601,21.6019518,1796.4,1796.3,41.91323]
[1746640710000,21.6019518,1796.4,1796.3,45.12103]
[1746640710506,20.2103518,1796.4,1796.3,45.54190039]
[1746640710706,20.2103518,1796.4,1796.3,50.54190039]
[1746640710906,17.42488304,1796.4,1796.3,50.54190039]
[1746640711106,14.63941428,1796.4,1796.3,50.54190039]
[1746640711412,9.06847676,1796.4,1796.3,50.54190039]
[1746640711604,6.283008,1796.4,1796.3,50.54190039]
[1746640711909,3.49753924,1796.4,1796.3,50.54190039]
[1746640712402,0.71207048,1796.4,1796.3,50.54190039]
[1746640712604,1.11292,1796.8,1796.6,1.113]
[1746640713207,1.11304,1796.7,1796.5,1.11309]
[1746640713411,1.1131,1796.6,1796.4,1.11315]
[1746640713909,1.11301,1796.7,1796.5,1.11309]
[1746640715006,3.2078,1796.7,1796.3,40.8]
[1746640715308,1.11309,1796.6,1796.4,1.11317]
[1746640715810,1.11309,1796.6,1796.5,1.1131]
[1746640716107,2.78261,1796.6,1796.2,1.11326]
[1746640716303,1.11318,1796.4,1796.3,1.11319]
[1746640716609,5.41092,1796.5,1796.4,1.11317]
[1746640716908,1.09,1796.5,1796.3,1.11318]
[1746640717108,1.1132,1796.4,1796.3,1.11318]
[1746640717310,1.11325,1796.3,1796.2,1.11322]
[1746640717507,5.41095,1796.5,1796.4,1.11317]
[1746640717908,2.20315,1796.5,1796.4,1.11317]
[1746640718211,2.2031,1796.5,1796.4,1.11317]
[1746640718504,1.09,1796.5,1796.4,1.11317]
[1746640720111,2.2031,1796.5,1796.4,1.11317]
[1746640720300,1.09,1796.5,1796.4,1.11317]
[1746640721615,1.11301,1796.7,1796.6,1.11304]
[1746640722001,2.20296,1796.8,1796.7,1.11298]
[1746640722508,2.20292,1796.8,1796.7,1.11298]
[1746640722811,1.09,1796.8,1796.7,1.11298]
[1746640723205,2.20292,1796.8,1796.7,1.11298]
[1746640723406,1.09,1796.8,1796.7,1.11298]
[1746640727313,2.20292,1796.8,1796.7,1.11298]
[1746640727503,1.11286,1796.9,1796.8,1.11292]
[1746640727909,1.11294,1796.8,1796.7,1.11291]
[1746640728309,1.11291,1796.9,1796.8,1.11287]
[1746640729904,8.77208,1797.0,1796.2,2.78308]
[1746640730110,1.11328,1796.3,1796.2,1.11325]
[1746640730311,2.78308,1796.3,1795.6,3.2078]
[1746640730611,4.3212,1796.1,1796.0,1.11341]
[1746640730816,3.2078,1796.1,1796.0,1.11341]
[1746640731006,1.11335,1796.2,1796.1,1.11335]
[1746640731210,1.11332,1796.2,1796.1,1.11332]
[1746640731818,1.11337,1796.1,1796.0,1.11337]
[1746640732220,1.11346,1796.0,1795.9,1.11345]
[1746640732511,4.2978,1796.3,1795.7,2.78399]
[1746640732716,1.11331,1796.2,1796.1,1.11331]
[1746640732917,2.20325,1796.3,1796.2,1.11329]
[1746640733120,1.09,1796.3,1796.2,1.11329]
[1746640735319,1.11321,1796.4,1796.3,1.11323]
[1746640736415,2.78266,1796.6,1796.0,2.78347]
[1746640736617,1.11319,1796.4,1796.3,1.11319]
[1746640736824,1.11326,1796.3,1796.2,1.11326]
[1746640737320,1.1132,1796.4,1796.3,1.11319]
[1746640738915,1.11313,1796.5,1796.4,1.11311]
[1746640739113,1.11323,1796.4,1796.3,1.1132]
[1746640739821,1.11326,1796.3,1796.2,1.11324]
[1746640740323,1.11333,1796.2,1796.1,1.1133]
[1746640745727,1.11333,1796.2,1796.0,1.11338]
[1746640745728,1.11343,1796.1,1796.0,1.11338]
[1746640747724,1.11334,1796.2,1796.1,1.1133]
[1746640749733,1.11334,1796.2,1795.9,2.78355]
[1746640750037,5.46414677,1796.3,1795.9,2.78355]
[1746640750038,1.11345,1796.0,1795.9,1.11341]
[1746640750335,1.1134,1796.1,1796.0,1.11335]
[1746640752032,1.11347,1796.0,1795.9,1.11339]
[1746640754927,3.65056859,1796.1,1796.0,1.11341]
[1746640755122,4.76391859,1796.1,1796.0,1.11341]
[1746640755327,1.11346,1796.0,1795.9,1.11342]
[1746640755734,4.76394859,1796.1,1796.0,1.11341]
[1746640757035,3.65056859,1796.1,1796.0,1.11341]
[1746640757228,1.89541859,1796.2,1796.1,1.11335]
[1746640757430,1.73803957,1796.2,1796.1,1.11335]
[1746640757728,0.15737902,1796.2,1796.1,1.11335]
[1746640759441,8.37179954,1796.4,1796.3,1.11323]
[1746640759442,5.93318497,1796.4,1796.3,1.11323]
[1746640761037,7.04635497,1796.4,1796.3,1.11323]
[1746640761534,16.86034372,1796.8,1796.4,1.11317]
[1746640761535,1.11312,1796.5,1796.4,1.11317]
[1746640761926,1.11308,1796.6,1796.4,1.11317]
[1746640762129,1.11303,1796.7,1796.2,5.99099]
[1746640762330,1.11303,1796.7,1796.3,2.78306]
[1746640762532,1.11304,1796.6,1796.5,1.11306]
[1746640762737,1.11303,1796.7,1796.5,1.11306]
[1746640763038,1.11303,1796.7,1796.6,1.11304]
[1746640763538,1.11303,1796.7,1796.3,5.56612]
[1746640763539,9.05851143,1796.8,1796.7,1.11298]
[1746640765538,1.11291,1796.9,1796.8,1.11292]
[1746640765842,4.32071,1796.9,1796.8,1.11292]
[1746640766337,1.11299,1796.8,1796.7,1.11295]
[1746640768139,1.11307,1796.6,1796.5,1.11304]
[1746640768436,1.11304,1796.6,1796.5,1.11304]
[1746640768740,1.11313,1796.5,1796.4,1.1131]
[1746640769244,4.32093,1796.5,1796.4,1.1131]
[1746640769626,1.11313,1796.5,1796.4,1.1131]
[1746640769829,9.32093,1796.5,1795.8,3.2078]
[1746640770036,1.11331,1796.2,1796.1,1.11329]
[1746640770237,1.11313,1796.5,1796.4,1.11311]
[1746640770433,1.1132,1796.4,1796.3,1.11318]
[1746640770841,1.11316,1796.5,1796.4,1.11314]
[1746640771346,1.11325,1796.3,1796.2,1.11323]
[1746640771639,1.11319,1796.4,1796.3,1.11317]
[1746640771841,1.11326,1796.3,1796.2,1.11325]
[1746640772043,1.11315,1796.5,1796.4,1.11314]
[1746640772235,1.11319,1796.4,1796.3,1.11318]
[1746640772736,1.11326,1796.3,1796.2,1.11325]
[1746640773142,7.08041,1796.6,1796.0,2.78352]
[1746640773143,1.11321,1796.4,1796.3,1.11319]
[1746640773339,4.32101,1796.4,1796.3,1.11319]
[1746640773729,4.32101,1796.4,1796.2,1.11323]
[1746640773730,1.11325,1796.3,1796.2,1.11323]
[1746640773935,1.11337,1796.1,1796.0,1.11335]
[1746640774142,1.11334,1796.2,1796.1,1.11332]
[1746640774946,3.2078,1796.4,1795.9,3.2078]
[1746640775146,1.11332,1796.2,1796.1,1.11329]
[1746640775447,7.08114,1796.2,1795.7,3.2078]
[1746640775637,1.11354,1795.8,1795.7,4.32134]
[1746640775932,1.11352,1795.9,1795.8,1.11349]
[1746640776644,1.11345,1796.0,1795.9,1.11342]
[1746640778043,4.2978,1796.2,1795.7,5.99174]
[1746640778238,4.2978,1796.2,1795.7,3.2078]
[1746640781541,3.2078,1796.2,1795.7,3.2078]
[1746640781747,3.2078,1796.2,1795.9,3.2078]
[1746640782647,12.26631143,1796.2,1795.9,3.2078]
[1746640783034,3.2078,1796.0,1795.6,0.4214051]
[1746640783242,3.2078,1795.8,1795.0,0.41481487]
[1746640783445,3.2078,1795.8,1795.1,3.2078]
[1746640783844,3.2078,1795.8,1795.3,3.2078]
[1746640784344,3.2078,1795.8,1795.4,3.2078]
[1746640786545,0.42315343,1795.8,1795.4,8.2078]
[1746640786848,9.05851143,1796.0,1795.7,3.2078]
[1746640787244,9.05851143,1796.0,1795.5,3.2078]
[1746640789248,9.05851143,1796.1,1795.7,3.2078]
[1746640789640,9.05851143,1796.1,1795.9,3.2078]
[1746640789841,8.31751143,1796.1,1795.9,3.2078]
[1746640790350,5.06611144,1796.1,1795.9,8.2078]
[1746640790749,3.64381144,1796.1,1795.9,8.2078]
[1746640791049,2.64781144,1796.1,1795.9,8.2078]
[1746640791241,0.996,1796.1,1795.9,8.2078]
[1746640791442,10.87021372,1796.5,1795.9,8.2078]
[1746640791642,10.87021372,1796.5,1796.3,3.2078]
[1746640792650,10.51036866,1796.8,1796.3,3.2078]
[1746640793555,10.51036866,1796.8,1796.1,3.2078]
[1746640794949,10.51036866,1796.8,1796.3,3.2078]
[1746640795153,7.30256866,1796.8,1796.3,3.2078]
[1746640795344,7.30256866,1796.8,1796.5,3.2078]
[1746640795744,7.30256866,1796.8,1796.7,3.2078]
[1746640798956,7.30256866,1796.8,1796.7,8.2078]
[1746640799154,7.30256866,1796.8,1796.7,3.2078]
[1746640800364,10.51036866,1797.3,1796.7,3.2078]
[1746640800562,3.2078,1797.2,1796.5,3.2078]
[1746640801256,3.2078,1796.8,1796.1,3.2078]
[1746640801456,3.2078,1797.0,1796.1,3.2078]
[1746640801658,3.2078,1797.0,1796.3,3.2078]